[Event "ETCC Open 2023"]
[Site "Budva"]
[Date "2023.11.11"]
[Round "1.8"]
[White "Ter-Sahakyan, Samvel"]
[Black "Draskovic, Luka"]
[Result "1/2-1/2"]
[ECO "B67"]
[WhiteElo "2618"]
[BlackElo "2476"]
[Annotator "TA"]
[PlyCount "93"]
[EventDate "2023.11.10"]
[EventType "team-tourn"]
[EventCountry "MNE"]
[SourceTitle "playchess.com"]
[Source "ChessBase"]
[SourceQuality "1"]
[WhiteTeam "Armenia"]
[BlackTeam "Montenegro"]
[WhiteTeamCountry "ARM"]
[BlackTeamCountry "MNE"]
[TimeControl "40/5400+30:1800+30"]

{[%evp 16,93,36,19,40,43,40,33,30,11,24,5,14,0,0,0,21,29,49,29,62,62,84,0,0,9,0,11,40,39,47,50,51,0,0,0,39,21,37,0,0,0,0,-9,0,0,74,68,66,43,43,62,57,58,58,58,64,68,96,20,47,39,14,0,20,0,27,0,24,0,0,0,0,0,0,0,0,0,0,0]} 1. e4 {[%emt 0:00:05]} c5 {[%emt 0:00:13]} 2. Nf3 {[%emt 0:00:06]} d6 {[%emt 0:00:17]} 3. d4 {[%emt 0:00:06]} cxd4 {[%emt 0:00:06]} 4. Nxd4 {[%emt 0:00:03]} Nf6 {[%emt 0:00:18]} 5. Nc3 {[%emt 0:00:16]} Nc6 {[%emt 0:00:39]} 6. Bg5 {[%emt 0:01:02]} Bd7 {[%emt 0:00:47]} 7. Qd2 {[%emt 0:01:58]} a6 {[%emt 0:01:22]} 8. O-O-O {[%emt 0:05:53]} e6 {[%emt 0:00:49]} 9. Kb1 {[%emt 0:01:37]} Nxd4 {[%emt 0:02:25] now supersedes 9...Be7. B67: Sicilian: Richter-Rauzer: 7...a6 8 0-0-0 Bd7, lines without 9 f4 Be7.} 10. Qxd4 {[%emt 0:00:05]} Be7 {[%emt 0:00:04]} 11. f3 {[%emt 0:06:00]} Qc7 {[%emt 0:02:12] White is slightly better.} 12. Qd2 {[%emt 0:01:49]} b5 {[%emt 0:04:27]} 13. g4 {[%emt 0:04:34]} h5 {[%emt 0:10:35]} 14. gxh5 {[%emt 0:00:06]} Nxh5 {[%emt 0:01:21]} 15. Rg1 {[%emt 0:00:17] [#]} Bc6 $146 {[%emt 0:30:41]} ({Predecessor:} 15... Bf6 16. Bxf6 gxf6 17. f4 Qc5 18. Bg2 b4 19. Ne2 Rc8 20. Bf3 Bc6 21. Nd4 Bb7 {½-½ Ter Sahakyan,S (2632)-Lagarde,M (2626) EU-ch 22nd Terme Catez 2022 (8)}) 16. Ne2 {[%emt 0:11:48]} Nf6 {[%emt 0:05:33]} 17. Nd4 {[%emt 0:03:15]} Bb7 {[%emt 0:08:21]} 18. h4 {[%emt 0:05:06]} g6 {[%emt 0:10:39]} 19. Bh3 {[%emt 0:16:58] White is more active.} (19. c4 $16) 19... e5 $1 $11 {[%emt 0:00:41]} 20. Ne2 {[%emt 0:03:36]} Rd8 {[%emt 0:00:17]} 21. Ng3 {[%emt 0:11:30]} Nh5 {[%emt 0:02:02]} (21... d5 $5 {[%cal Rd5e4]} 22. Qg2 Kf8 $11) 22. Nxh5 {[%emt 0:03:46]} Rxh5 {[%emt 0:00:10]} 23. Bg4 {[%emt 0:01:52]} Rh8 {[%emt 0:03:04]} 24. Qf2 {[%emt 0:06:07]} (24. h5 $14 gxh5 25. Bxe7 Qxe7 26. Bf5) 24... Bxg5 $1 {[%emt 0:02:06]} 25. hxg5 {[%emt 0:00:03]} Ke7 {[%emt 0:00:27]} (25... Qc5 $5 {[%cal Rc5f2]} 26. Qd2 Kf8 $11) 26. Rd3 {[%emt 0:05:22] aiming for Rc3.} Qc5 {[%emt 0:00:44] Inhibits Rc3.} 27. Qg3 {[%emt 0:00:30]} b4 {[%emt 0:02:29]} 28. Rc1 {[%emt 0:02:12]} a5 {[%emt 0:01:21]} 29. c3 {[%emt 0:00:59][%cal Bc2c3,Bc3c4][%mdl 32] [#]} b3 $1 {[%emt 0:00:47]} 30. axb3 {[%emt 0:01:57]} Qb5 {[%emt 0:02:52] [#]} (30... a4 $1 $11 31. b4 (31. bxa4 Qc4 $11) 31... Qc4) 31. c4 $1 $16 {[%emt 0:00:45]} Qc5 {[%emt 0:00:52]} 32. Qg1 {[%emt 0:00:53]} Bc6 {[%emt 0:00:47]} 33. Rcd1 {[%emt 0:00:46]} Rhf8 {[%emt 0:03:17]} 34. Qe3 {[%emt 0:02:11]} Rh8 {[%emt 0:00:16]} 35. Qd2 {[%emt 0:00:12]} Rh4 {[%emt 0:00:22][%cal Oh4g4]} 36. Ka1 {[%emt 0:01:17]} Rhh8 {[%emt 0:02:29]} 37. Qc3 {[%emt 0:01:13]} (37. Ka2 $16) 37... Rh4 {[%emt 0:00:55]} 38. Ka2 {[%emt 0:00:18]} Rh2 $1 {[%emt 0:00:28] Dodges Qd2} 39. Ka1 {[%emt 0:01:52]} Rf2 {[%emt 0:00:38]} 40. Ka2 {[%emt 0:00:42]} Rg2 {[%emt 0:01:50]} 41. Ka1 {[%emt 0:11:30]} (41. Bh3 $5 {[%cal Rh3g2]} Rg3 42. f4 (42. Bg4 Rg1 $11) 42... Rxd3 43. Rxd3 $16 (43. Qxd3 exf4 {[%mdl 64] Discovered Attack} 44. e5 Qxe5 $17)) 41... Rf2 {[%emt 0:07:21]} 42. Qe1 {[%emt 0:04:22][%cal Od3d5]} Rc2 {[%emt 0:06:06] The position is equal.} 43. Kb1 {[%emt 0:03:32]} Rg2 {[%emt 0:03:31]} 44. Qh1 {[%emt 0:09:58]} Re2 {[%emt 0:04:12] Hoping for ...Qf2.} ({Resist} 44... Qf2 45. R3d2 Qxd2 46. Rxd2 Rxd2 47. Qe1 $18) 45. Qf1 {[%emt 0:00:06] Some like it hot} Rf2 {[%emt 0:03:38]} 46. Qe1 {[%emt 0:00:03][%cal Od3d5] Rd5! would be deadly.} Rg2 {[%emt 0:01:23]} 47. Qf1 {[%emt 0:05:22] Weighted Error Value: White=0.13 (very precise) /Black=0.09 (flawless)} 1/2-1/2

[Event "ETCC Open 2023"]
[Site "Budva"]
[Date "2023.11.11"]
[Round "1.9"]
[White "Carlsen, Magnus"]
[Black "Pechac, Jergus"]
[Result "1-0"]
[ECO "C65"]
[WhiteElo "2829"]
[BlackElo "2580"]
[Annotator "TA"]
[PlyCount "71"]
[EventDate "2023.11.10"]
[EventType "team-tourn"]
[EventCountry "MNE"]
[SourceTitle "playchess.com"]
[Source "ChessBase"]
[SourceQuality "1"]
[WhiteTeam "Norway"]
[BlackTeam "Slovakia"]
[WhiteTeamCountry "NOR"]
[BlackTeamCountry "SVK"]
[TimeControl "40/5400+30:1800+30"]

{[%evp 9,71,0,0,9,7,6,0,7,9,8,17,6,6,8,15,17,4,0,35,29,61,40,59,52,44,54,50,35,29,35,32,34,52,43,42,43,65,30,136,113,123,131,126,123,112,133,196,201,262,245,346,326,368,217,334,359,319,327,361,306,295,297,372,341]} 1. e4 {[%emt 0:00:11]} e5 {[%emt 0:00:06]} 2. Nf3 {[%emt 0:00:41]} Nc6 {[%emt 0:00:09]} 3. Bb5 {[%emt 0:00:14]} Nf6 {[%emt 0:00:14]} 4. d4 {[%emt 0:02:25]} Nxd4 {[%emt 0:08:13]} 5. Nxd4 {[%emt 0:01:41]} c6 {[%emt 0:00:05]} 6. Bc4 {[%emt 0:18:18] White wants to play Nf3. C65: Ruy Lopez: Berlin Defence (3...Nf6), unusual lines and 4 0-0 Bc5.} exd4 {[%emt 0:00:34]} 7. Qxd4 {[%emt 0:00:22]} Qb6 {[%emt 0:08:10]} 8. Qe5+ {[%emt 0:11:41] The position is equal.} Be7 $1 {[%emt 0:00:09][%cal Ob6f2]} 9. O-O {[%emt 0:00:08]} d6 {[%emt 0:01:54]} 10. Qg3 {[%emt 0:00:07]} O-O {[%emt 0:01:25]} 11. Nc3 {[%emt 0:00:18] [#]} Be6 $146 {[%emt 0:22:31]} ({Predecessor:} 11... Qc7 12. Bh6 Nh5 13. Qf3 Nf6 14. Bf4 Be6 15. Bb3 Nd7 16. Rad1 Ne5 17. Qg3 Bxb3 18. axb3 {½-½ Tregubov,P (2539)-Fieberg,S (2186) Titled Tuesday intern op 22 Mar Late blitz 2022 (5)}) 12. Bxe6 {[%emt 0:01:27]} fxe6 {[%emt 0:00:07]} 13. e5 {[%emt 0:00:12]} Ne8 {[%emt 0:00:31]} 14. Qg4 {[%emt 0:07:21]} Rf5 {[%emt 0:03:03]} 15. exd6 {[%emt 0:00:32]} Bxd6 {[%emt 0:02:13]} 16. Qc4 {[%emt 0:03:20]} (16. Qe2 {simplifies} Re5 17. Ne4 Nf6 18. Nxf6+ gxf6 19. Qg4+) 16... Nc7 {[%emt 0:00:56]} 17. Ne4 {[%emt 0:01:26]} Be5 {[%emt 0:10:33]} 18. a4 {[%emt 0:02:30]} Nd5 {[%emt 0:03:05]} ({Weaker is} 18... Bxb2 19. Bxb2 (19. Rb1 Qd4 $14) 19... Qxb2 20. Rab1 $16) 19. c3 {[%emt 0:02:36]} a5 {[%emt 0:06:13]} 20. g3 {[%emt 0:03:27]} h6 {[%emt 0:05:01]} 21. Bd2 {[%emt 0:04:14]} Re8 {[%emt 0:00:24]} (21... Qxb2 $2 22. Rab1 Qa3 23. f4 $18 (23. Rxb7 Qf8 $16)) 22. Rae1 {[%emt 0:00:39][%cal Ba1e1,Be1e2,Be2e3,Be3d3][%mdl 32]} Bb8 {[%emt 0:01:07]} (22... Qxb2 $2 23. Rb1 Qa3 24. Rxb7 $18) 23. Re2 {[%emt 0:04:25]} Qxb2 {[%emt 0:05:39] [#]} (23... Ref8 $11) 24. Bxh6 $1 $16 {[%emt 0:00:51][%mdl 576] Discovered Attack} Qa3 {[%emt 0:00:24]} (24... Qb6 25. Bd2) 25. Be3 {[%emt 0:10:05]} Nxe3 {[%emt 0:02:48]} 26. Rxe3 {[%emt 0:00:21]} Qe7 {[%emt 0:01:17]} 27. h4 {[%emt 0:02:54]} Qd7 {[%emt 0:03:20] [#]} (27... Ba7 $16 {was necessary.}) 28. Ng5 $1 $18 {[%emt 0:01:03] Strongly threatening Qg4.} Ba7 {[%emt 0:01:47] [#]} 29. Rd3 {[%emt 0:03:21]} (29. Rxe6 Rxe6 30. Qxe6+ (30. Nxe6 Qf7 $11) 30... Qxe6 31. Nxe6 b5 $14) 29... Rd5 {[%emt 0:00:20]} (29... Qe7 $142 30. Qg4 Rf6) 30. Rf3 {[%emt 0:00:17]} Rf8 {[%emt 0:00:35]} 31. Rxf8+ {[%emt 0:00:38]} Kxf8 {[%emt 0:00:07]} 32. Qe4 {[%emt 0:00:14] Wards off Re5} Ke7 {[%emt 0:03:46]} 33. Qg6 {[%emt 0:00:12]} Kd8 {[%emt 0:01:09]} 34. Nxe6+ {[%emt 0:02:17]} ({Less strong is} 34. Qxe6 Qxe6 35. Nxe6+ Ke7 $14) 34... Kc8 {[%emt 0:00:34]} 35. Nxg7 {[%emt 0:00:38]} Re5 {[%emt 0:01:12]} 36. Qf6 {[%emt 0:01:32] Weighted Error Value: White=0.04 (flawless) /Black=0.23 (precise)} 1-0

[Event "ETCC Open 2023"]
[Site "Budva"]
[Date "2023.11.11"]
[Round "1.10"]
[White "Gazik, Viktor"]
[Black "Tari, Aryan"]
[Result "1-0"]
[ECO "B69"]
[WhiteElo "2547"]
[BlackElo "2620"]
[Annotator "TA"]
[PlyCount "117"]
[EventDate "2023.11.10"]
[EventType "team-tourn"]
[EventCountry "MNE"]
[SourceTitle "playchess.com"]
[Source "ChessBase"]
[SourceQuality "1"]
[WhiteTeam "Slovakia"]
[BlackTeam "Norway"]
[WhiteTeamCountry "SVK"]
[BlackTeamCountry "NOR"]
[TimeControl "40/5400+30:1800+30"]

{[%evp 22,117,56,31,48,39,51,45,66,42,59,33,42,36,43,0,0,-36,26,31,78,89,122,85,99,100,144,108,135,68,75,64,67,58,91,0,78,62,75,94,94,60,350,350,275,231,227,204,310,239,265,248,325,318,331,318,305,287,411,413,454,399,431,439,426,431,680,598,675,623,612,616,605,595,731,745,937,921,1233,1233,1226,1212,1220,1181,1323,1332,7236,6514,29989,29990,29993,29994,29994,29995,29996,29997,29997,29998]} 1. e4 {[%emt 0:00:02]} c5 {[%emt 0:00:08]} 2. Nf3 {[%emt 0:00:05]} d6 {[%emt 0:00:05]} 3. d4 {[%emt 0:00:05]} cxd4 {[%emt 0:00:06]} 4. Nxd4 {[%emt 0:00:04]} Nf6 {[%emt 0:00:09]} 5. Nc3 {[%emt 0:00:04]} Nc6 {[%emt 0:00:05]} 6. Bg5 {[%emt 0:01:11]} e6 {[%emt 0:00:12]} 7. Qd2 {[%emt 0:00:21]} a6 {[%emt 0:00:22]} 8. O-O-O {[%emt 0:00:36]} Bd7 {[%emt 0:00:14]} 9. f4 {[%emt 0:01:03][%cal Bf2f4,Bf4f5][%mdl 32]} Be7 {[%emt 0:00:20]} 10. Nf3 {[%emt 0:08:07]} b5 {[%emt 0:00:28]} 11. Bxf6 {[%emt 0:05:54]} gxf6 {[%emt 0:00:08]} 12. Kb1 {[%emt 0:04:52][%cal Of4f5]} b4 {[%emt 0:01:45] B69: Sicilian: Richter-Rauzer: 7...a6 8 0-0-0 Bd7 9 f4 Be7 10 Nf3 b5 11 Bxf6.} 13. Ne2 {[%emt 0:00:24][%cal Of4f5]} h5 {[%emt 0:01:17] [#]} 14. f5 $1 {[%emt 0:15:30] Strongly threatening fxe6.} e5 {[%emt 0:00:07] White is slightly better.} 15. Nc1 {[%emt 0:05:16]} a5 {[%emt 0:09:49]} 16. Bc4 {[%emt 0:01:19]} Qb6 {[%emt 0:01:58] [#]} 17. Rhe1 $146 {[%emt 0:03:54]} ({Predecessor:} 17. Rhg1 Rc8 18. Qd5 Nd8 19. g4 Qe3 20. Rg3 Rc5 21. Qd3 Qxd3 22. Bxd3 hxg4 23. Rxg4 {½-½ Mitusov,S (2468)-Sasikiran,K (2595) Fagernes Autumn op 2023 (9)}) 17... Rc8 {[%emt 0:04:04][%cal Oc6d4]} 18. Bd5 {[%emt 0:04:26]} Na7 {[%emt 0:04:28]} 19. Qe3 {[%emt 0:10:02]} Qb8 {[%emt 0:17:44]} ({Black should play} 19... Qxe3 $15 20. Rxe3 Nb5) 20. Nd2 $11 {[%emt 0:03:34]} a4 {[%emt 0:09:59]} (20... Qc7 $14) 21. Nc4 $36 {[%emt 0:09:43][%mdl 2048] Keeping Black busy.} a3 {[%emt 0:09:38]} 22. b3 {[%emt 0:08:45]} Nb5 {[%emt 0:07:41]} 23. Ne2 {[%emt 0:00:01] Repels Nc3+} Bf8 {[%emt 0:11:46]} 24. c3 {[%emt 0:06:11]} Bh6 {[%emt 0:03:23]} 25. Qh3 {[%emt 0:00:05]} (25. Qf3 $16) 25... bxc3 $1 $14 {[%emt 0:03:44]} 26. Qxh5 {[%emt 0:00:09]} (26. Nxc3 $5 Kf8 27. Nxb5 Bxb5 28. Qxh5 $16 (28. Nxa3 Ba6 $16)) 26... Rh7 {[%emt 0:00:31]} 27. Rd3 $1 {[%emt 0:02:07]} (27. Bxf7+ $2 Rxf7 28. Qxh6 Rxc4 $19) 27... Ke7 {[%emt 0:02:16] [#] ...Bc6 would be deadly.} 28. Rf1 {[%emt 0:04:57] White has more active pieces.} (28. Nxc3 Nxc3+ 29. Rxc3 Qb4 $17) (28. Red1 $1 $16) 28... Qa7 {[%emt 0:04:22]} (28... c2+ $1 $11 {remains equal.} 29. Kxc2 Bc6 30. Bxc6 Rxc6) 29. Nxc3 $16 {[%emt 0:01:25]} Nxc3+ {[%emt 0:00:07]} 30. Rxc3 {[%emt 0:00:01]} Qd4 {[%emt 0:00:56] Prevents Rd1. ( -> ...Rxc4)} 31. Rc2 {[%emt 0:00:38] aiming for Rd1.} Be8 $2 {[%emt 0:03:06][%mdl 8192] This move loses the game for Black.} ({Better is} 31... Rxc4 $1 $14 32. Bxc4 (32. bxc4 Qb6+ 33. Ka1 Be3 34. Qe2 Bd4+) 32... Qxe4) 32. Rd1 $18 {[%emt 0:01:32]} ({Less strong is} 32. Nxa3 Rxc2 33. Nxc2 Qd2 $18) 32... Qa7 {[%emt 0:00:23]} 33. g3 {[%emt 0:00:58]} Rc5 {[%emt 0:02:49]} 34. h4 {[%emt 0:02:11] And now g4 would win.} Rh8 {[%emt 0:00:36]} (34... Kf8 {keeps fighting.} 35. Qf3 (35. Nxd6 $2 {perishes.} Rxc2 36. Kxc2 Qf2+ {[%mdl 64] Skewer, Double Attack} 37. Kc3 Bd2+ {[%mdl 64] Discovered Attack} 38. Rxd2 Qxg3+ 39. Kc4 Rxh5 $19) 35... Qa6) 35. Rc3 {[%emt 0:00:47]} Rc7 {[%emt 0:01:56]} 36. Qf3 {[%emt 0:00:50][%cal Oc4d6] Nxd6! is the strong threat.} Qc5 {[%emt 0:00:27]} 37. Rc2 {[%emt 0:00:22]} Qa7 {[%emt 0:01:09] [#]} 38. Nxa3 $1 {[%emt 0:00:05][%mdl 576] Deflection} Rxc2 {[%emt 0:00:28]} 39. Nxc2 {[%emt 0:00:01]} Rg8 {[%emt 0:00:20]} (39... Bb5 {was worth a try.} 40. a4 Bd7) 40. Kb2 {[%emt 0:01:17]} Qc5 {[%emt 0:00:41]} 41. a3 {[%emt 0:04:35][%cal Ba2a3,Ba3a4][%mdl 32]} Qb6 {[%emt 0:01:18]} 42. Bc4 {[%emt 0:08:15]} Kf8 {[%emt 0:04:06]} 43. Qd3 {[%emt 0:02:47]} Qf2 {[%emt 0:03:01]} (43... Rg4 $142 44. Qf3 Rg8) 44. Qxd6+ {[%emt 0:00:20]} Kg7 {[%emt 0:00:01]} 45. a4 {[%emt 0:11:56]} Be3 {[%emt 0:01:04]} 46. g4 {[%emt 0:02:11][%cal Bg3g4,Bg4g5][%mdl 32] Hoping for g5!} Bc5 {[%emt 0:02:16]} 47. Qd5 {[%emt 0:00:01]} Bd4+ {[%emt 0:04:55]} 48. Kb1 {[%emt 0:00:01]} Ba7 {[%emt 0:06:05]} 49. g5 {[%emt 0:01:45]} Qxh4 {[%emt 0:00:01] [#]} 50. g6 $1 {[%emt 0:01:34][%cal Rg6f7]} Rf8 {[%emt 0:00:07]} 51. gxf7 {[%emt 0:01:34]} Bxf7 {[%emt 0:01:00]} 52. Qb7 {[%emt 0:00:29]} Qh5 {[%emt 0:10:57]} 53. Rd7 {[%emt 0:00:09]} Kh8 {[%emt 0:00:09]} 54. Bxf7 {[%emt 0:01:28]} Qh1+ {[%emt 0:00:46]} 55. Kb2 {[%emt 0:00:23][%cal Bb1b2,Bb2b3,Bb3c3,Bc3b3][%mdl 32] White mates.} Rb8 {[%emt 0:01:18]} 56. Qxa7 {[%emt 0:00:52]} Rxb3+ {[%emt 0:00:17]} 57. Kxb3 {[%emt 0:00:06]} ({Stronger than} 57. Bxb3 Qa1+ 58. Kxa1 $11) 57... Qb1+ {[%emt 0:00:57]} 58. Kc3 {[%emt 0:00:10]} Qb3+ {[%emt 0:00:04]} 59. Kxb3 {[%emt 0:00:05] An entertaining game by Gazik.   Weighted Error Value: White=0.23 (precise) /Black=0.37} 1-0

[Event "ETCC Open 2023"]
[Site "Budva"]
[Date "2023.11.11"]
[Round "1.11"]
[White "Amar, Elham"]
[Black "Druska, Juraj"]
[Result "1/2-1/2"]
[ECO "C75"]
[WhiteElo "2584"]
[BlackElo "2472"]
[Annotator "TA"]
[PlyCount "105"]
[EventDate "2023.11.10"]
[EventType "team-tourn"]
[EventCountry "MNE"]
[SourceTitle "playchess.com"]
[Source "ChessBase"]
[SourceQuality "1"]
[WhiteTeam "Norway"]
[BlackTeam "Slovakia"]
[WhiteTeamCountry "NOR"]
[BlackTeamCountry "SVK"]
[TimeControl "40/5400+30:1800+30"]

{[%evp 18,105,38,6,20,0,23,19,19,18,24,0,3,8,6,0,10,0,0,0,0,0,0,0,10,-14,-13,-14,-13,-12,-10,-11,0,0,66,72,57,-101,-52,-42,-25,-23,-19,-28,-24,-114,0,0,0,-364,0,0,0,0,0,-189,0,-33,-33,-170,145,-222,0,0,0,0,0,0,0,0,0,0,0,0,0,0,0,0,0,0,0,0,0,0,0,0,0,0,0,0]} 1. e4 {[%emt 0:00:04]} e5 {[%emt 0:00:21]} 2. Nf3 {[%emt 0:00:05]} Nc6 {[%emt 0:00:18]} 3. Bb5 {[%emt 0:00:06]} a6 {[%emt 0:00:17]} 4. Ba4 {[%emt 0:00:03]} d6 {[%emt 0:00:16]} 5. O-O {[%emt 0:02:48]} Bd7 {[%emt 0:00:23]} 6. c3 {[%emt 0:01:39]} Nge7 {[%emt 0:00:16]} 7. d4 {[%emt 0:02:04]} Ng6 {[%emt 0:00:14]} 8. Re1 {[%emt 0:08:30]} Be7 {[%emt 0:00:20]} 9. Be3 {[%emt 0:03:29]} O-O {[%emt 0:00:10]} 10. Nbd2 {[%emt 0:01:20][%cal Bb1d2,Bd2e4,Be4c3][%mdl 32]} exd4 {[%emt 0:07:26] C75: Ruy Lopez: Deferred Steinitz: 5 c3 Bd7 6 d4 without ...g6.} 11. cxd4 {[%emt 0:03:35]} d5 {[%emt 0:13:56] [#]} 12. a3 $146 {[%emt 0:13:31]} ({Predecessor:} 12. e5 Nb4 13. Bxd7 Qxd7 14. Nb1 f6 15. exf6 Bxf6 16. Nc3 Nc6 17. Rc1 Nce7 18. Qb3 {1-0 Martinez Alcantara,J (2607)-Lobanov,S (2536) Chessable Masters Div 3 Lose rapid 2023 (1.2)}) 12... dxe4 {[%emt 0:05:12]} 13. Nxe4 {[%emt 0:00:08]} Bg4 {[%emt 0:19:51]} 14. Bxc6 {[%emt 0:08:47]} bxc6 {[%emt 0:00:16]} 15. h3 {[%emt 0:10:40]} Bxf3 {[%emt 0:23:36]} 16. Qxf3 {[%emt 0:00:05]} f5 {[%emt 0:00:19]} 17. Nc3 {[%emt 0:07:30]} f4 {[%emt 0:00:20]} 18. Bd2 {[%emt 0:01:57]} Qxd4 {[%emt 0:01:15]} 19. Rad1 {[%emt 0:00:10]} Qb6 {[%emt 0:06:01]} 20. Bc1 {[%emt 0:10:36]} Rad8 {[%emt 0:02:41]} 21. Re6 {[%emt 0:06:32][%cal Oc3d5] And now Nd5! would win.} Rxd1+ {[%emt 0:01:35]} 22. Qxd1 {[%emt 0:00:10]} Qc5 {[%emt 0:04:26] Prevents Nd5} 23. Qd3 {[%emt 0:04:32]} Bd6 {[%emt 0:05:42][%cal Of4f3]} (23... a5 {seems wilder.} 24. Qe4 Bh4 25. Qe2 f3) 24. Qxa6 {[%emt 0:04:15]} Kh8 {[%emt 0:01:48]} (24... Ne5 {keeps more tension.} 25. Qa4 Nd3 26. Qc2 Nxc1 27. Qxc1 f3) 25. Qa4 {[%emt 0:02:04]} Qf5 {[%emt 0:05:25]} ({Black should play} 25... f3 $11) 26. Qe4 $14 {[%emt 0:00:24]} Qf7 {[%emt 0:00:22]} 27. Bd2 $2 {[%emt 0:02:24]} (27. f3 $1 $14 {stays ahead.}) 27... Rb8 {[%emt 0:00:27]} ({Better is} 27... Rd8 $1 $17 {[%cal Og6e5]} 28. Qc4 Ne5 29. Rxd6 (29. Qxf4 $2 Qxe6 30. Ne4 Rf8 $19) 29... cxd6 30. Qxf7 Nxf7 31. Bxf4 Ne5) 28. b4 $15 {[%emt 0:03:21]} Nf8 {[%emt 0:00:21]} 29. Rxd6 {[%emt 0:00:04]} cxd6 {[%emt 0:00:04]} 30. Qxc6 {[%emt 0:00:03] [#]} f3 $1 {[%emt 0:01:17]} 31. b5 {[%emt 0:01:39]} (31. Qxf3 $11 {keeps the balance.} Qxf3 32. gxf3) (31. Qxd6 Qe8) 31... Ne6 {[%emt 0:00:24]} (31... fxg2 $17 {Threatens to win with ...Ng6.} 32. Qxd6 Re8 33. Kxg2 (33. Qd5 $2 Qxd5 34. Nxd5 Rd8 $19) 33... Ng6) 32. a4 $11 {[%emt 0:00:38]} fxg2 {[%emt 0:00:28][%cal Od6d5] Strongly threatening ...d5!} 33. a5 $2 {[%emt 0:02:47][%mdl 8192]} (33. Qd5 $11 {and White stays safe.}) 33... Nd4 $2 {[%emt 0:00:26]} (33... d5 $19 {...Rf8 is the strong threat.} 34. Nxd5 (34. Qxd5 $2 Rd8 $19 {[%mdl 64] Skewer}) 34... Qf5) 34. Qxd6 {[%emt 0:00:20]} Nf3+ $1 {[%emt 0:00:03]} ({Resist} 34... Qa7 35. b6 (35. Kxg2 Nxb5 36. Nxb5 Qa8+ 37. f3 Rxb5 $17) 35... Nf3+ 36. Kxg2 $16) 35. Kxg2 {[%emt 0:00:02]} Nh4+ {[%emt 0:00:17]} 36. Kg1 $2 {[%emt 0:00:45]} (36. Kf1 $1 $11 {and White has nothing to worry.} Rf8 37. Qf4) 36... Nf3+ $2 {[%emt 0:00:43]} ({Black should try} 36... Qb7 $1 $19 {[%csl Gh4][%cal Rb7g2]} 37. Kf1 Qg2+ 38. Ke1 Qa8) 37. Kh1 {[%emt 0:01:00]} Rc8 {[%emt 0:00:26]} 38. b6 {[%emt 0:00:37]} (38. a6 $1 $15 Qf5 39. Qg3 Nxd2 40. b6) 38... h6 $2 {[%emt 0:01:16] [#]} (38... Nxd2 $1 $19 39. Qxd2 Qf5) 39. a6 $2 {[%emt 0:00:21][%mdl 8192] [#]} (39. Qf4 $1 $16 {[%cal Rf4f7] is necessary to keep the advantage.} Qb7 40. Qe4) 39... Nxd2 $2 {[%emt 0:00:30]} (39... Qc4 $1 $19 {[%cal Rc4f1]} 40. Kg2 Nh4+ 41. Kg1 Qxa6) 40. b7 {[%emt 0:00:35] The position is equal.} Qf3+ {[%emt 0:00:30]} 41. Kg1 {[%emt 0:30:05] Really sharp!} Qxc3 {[%emt 0:30:12]} 42. bxc8=R+ {[%emt 0:00:00]} (42. Qxd2 $5 Qa1+ $8 43. Kg2 $11) 42... Qxc8 {[%emt 0:00:00]} 43. a7 {[%emt 0:00:00]} Nf3+ {[%emt 0:00:00]} 44. Kg2 {[%emt 0:00:00] White wants to mate with Qb8.} Nh4+ {[%emt 0:00:00]} (44... Ng5 {is a self mate.} 45. Qb8 Qg8 46. a8=Q Qxb8 47. Qxb8+ Kh7 48. Qe8 g6 49. h4) 45. Kh2 {[%emt 0:00:00] Intending Qb8 and mate.} Kh7 {[%emt 0:00:00]} (45... Nf3+ $2 46. Kg3 Kh7 47. Qb8 $18 (47. Kxf3 Qb7+ 48. Ke2 Qxa7 $11)) 46. Qd3+ {[%emt 0:00:00]} g6 {[%emt 0:00:00]} 47. Qa3 {[%emt 0:00:00]} Qa8 {[%emt 0:00:00][%csl Gh4][%cal Ra8g2]} 48. Qe7+ {[%emt 0:00:00]} Kg8 {[%emt 0:00:00][%csl Gh4][%cal Ra8g2]} 49. Qe6+ {[%emt 0:00:00]} Kh7 {[%emt 0:00:00][%csl Gh4][%cal Ra8g2]} 50. Qd7+ {[%emt 0:00:00]} Kg8 {[%emt 0:00:00][%csl Gh4][%cal Ra8g2]} 51. Qe6+ {[%emt 0:00:30]} Kh7 {[%emt 0:00:00][%csl Gh4][%cal Ra8g2]} 52. Qe7+ {[%emt 0:02:49]} Kg8 {[%emt 0:00:00][%csl Gh4][%cal Ra8g2]} 53. Qe6+ {[%emt 0:00:35] Weighted Error Value: White=0.40/Black=0.42} 1/2-1/2